Cogmind - Beta 15 @@@ ROGUE MODE // 2025.08.30 @ 10:07:19 Player: Possibly A Hive Mind Result: Destroyed by Y-45 Defender with Beam Rifle Performance ------------- Evolutions (1) 500 Regions Visited (4) 800 Robots Destroyed (79) 395 Value Destroyed (1845) 1845 Prototype IDs (7) 140 Alien Tech Used (0) 0 Bonus (81) 81 TOTAL SCORE: 3761 Bonus ------- High Alert Combat Kills 71 Follower Combat Kills 32 Friendly Fire -22 Cogmind --------- Core Integrity 0/400 Matter 243/300 Energy 280/280 System Corruption 0% Temperature Cool (12) Movement Rolling (140) Ox4 Location -9/Storage Parts ------- > --- POWER (1) -------- Cooled Ion Engine > --- PROPULSION (2) --- Wheel Wheel > --- UTILITY (3) ------ Huge Storage Unit Improved Targeting Computer Hacking Suite > --- WEAPON (3) ------- Heavy Assault Rifle Autogun Shotgun > --- INVENTORY (25) --- Cooled Ion Engine Improved Heat Sink Large Matter Pod (150) Weight Redist. System Visual Processing Unit Propulsion Shielding Weapon Shielding Heavy Armor Plating System Shield Particle Gun Heavy Assault Rifle Autogun Improved Assault Rifle Heavy Assault Cannon Improved Grenade Launcher Ripper Proton Bomb Trap Proton Bomb Trap Peak State ------------ > --- POWER ------------ Light Angular Momentum Engine > --- PROPULSION ------- Light Treads Light Treads > --- UTILITY ---------- Huge Storage Unit Compact Matter Pod Improved Targeting Computer > --- WEAPON ----------- Autogun Heavy Assault Cannon > --- INVENTORY -------- Compact Wheel Improved Flight Unit Improved Flight Unit Improved Heat Sink Large Matter Pod Propulsion Shielding Heavy Armor Plating Hacking Suite System Shield Particle Cannon Heavy Assault Rifle Autogun Shotgun Shotgun Shotgun Shotgun Rocket Launcher Improved Grenade Launcher Ripper Proton Bomb Trap Proton Bomb Trap Proton Bomb Trap Proton Bomb Trap [Rating: 26] Favorites ----------- Power Ion Engine Engine Ion Engine Power Core Light Nuclear Core Propulsion Wheel Treads Light Treads Leg Carbon-fiber Leg Wheel Wheel Utility Huge Storage Unit Device Improved Terrain Scanner Storage Huge Storage Unit Processor Targeting Computer Hackware Hacking Suite Protection Propulsion Shielding Weapon Autogun Energy Gun Particle Gun Energy Cannon Particle Cannon Ballistic Gun Autogun Ballistic Cannon Heavy Assault Cannon Launcher Rocket Launcher Special Melee Weapon Datajack Build | -11 -10 -10 -9 -9 ------- Run | Yrd Mat Min Mat Sto Slots Evolved 2 | . . . 2 . Power . | . . . . . Propulsion . | . . . . . Utility 1 | . . . 1 . Weapon 1 | . . . 1 . Parts Attached 44 | 7 9 3 18 7 Power 6 | 1 1 . 3 1 Engine 5 | 1 1 . 2 1 Core 1 | . . . 1 . Reactor . | . . . . . Propulsion 14 | 2 2 2 5 3 Treads 2 | . . . 2 . Leg 2 | . . . 2 . Wheel 10 | 2 2 2 1 3 Hover . | . . . . . Flight . | . . . . . Utility 8 | 1 3 . 3 1 Device 1 | 1 . . . . Storage 3 | . 2 . 1 . Processor 2 | . 1 . 1 . Hackware 1 | . . . . 1 Protection 1 | . . . 1 . Artifact . | . . . . . Weapon 16 | 3 3 1 7 2 Energy Gun 5 | 3 1 . 1 . Energy Cannon 1 | . . . 1 . Ballistic Gun 7 | . 2 . 3 2 Ballistic Cannon 1 | . . . 1 . Launcher 1 | . . . 1 . Special Weapon . | . . . . . Impact Weapon . | . . . . . Slashing Weapon . | . . . . . Piercing Weapon . | . . . . . Special Melee Weapon 1 | . . 1 . . Unidentified Prototypes 1 | . . . . 1 Parts Lost 17 | . 4 1 7 5 Power 3 | . . . 3 . Propulsion 6 | . 1 1 1 3 Utility 1 | . . . 1 . Weapon 7 | . 3 . 2 2 Highest Loss Streak 3 | . 3 1 2 2 To Critical Strikes . | . . . . . Average Backups 18 | 1 10 22 19 19 Power . | . 1 2 . 1 Propulsion 2 | . 3 6 2 . Utility 5 | . 3 4 6 8 Weapon 8 | 1 2 10 9 10 Tool/Special . | . . . . . Unused Backups 41 | . 1 10 11 19 Power 3 | . . . 1 2 Propulsion 9 | . . 5 4 . Utility 15 | . 1 3 3 8 Weapon 14 | . . 2 3 9 Tool/Special . | . . . . . Average Slot Usage (%) 89 | . 97 93 85 93 Engine 9 | . 14 14 7 11 Core 1 | . . . 3 . Treads 6 | . . . 11 . Wheel 13 | . 27 21 8 16 Storage 15 | . 13 14 16 11 Processor 11 | . 13 14 11 11 Protection 4 | . . . 4 9 Energy Gun 5 | . 15 . 3 10 Ballistic Gun 12 | . 11 27 7 21 Ballistic Cannon 6 | . . . 10 . Peak Build Rating 26 | 8 12 12 26 22 Average Rating 17 | 4 8 11 21 18 On Entrance 10 | . 8 12 12 18 Naked Turns . | . . . . . Heaviest Build 105 | 7 89 89 105 98 Greatest Support 40 | 26 26 26 40 26 Greatest Overweight (x) 10 | . 8 8 10 9 Average Overweight (x) 3 | . 2 4 3 5 Largest Inventory Capacity 25 | 5 25 25 25 25 Average Capacity 24 | 5 23 25 25 25 Most Carried 25 | 5 25 25 25 25 Average Carried 22 | 1 10 24 24 24 Final Capacity 25 | 5 25 25 25 25 Final Carried 25 | 1 25 25 24 20 Class Distribution -------------------- 68% | Gunner 31% | Mutant Dominant Class ---------------- Mutant | -10/Materials Mutant | -10/Mines Gunner | -9/Materials Gunner | -9/Storage Resources | -11 -10 -10 -9 -9 ----------- Run | Yrd Mat Min Mat Sto Matter Collected 2178 | 270 135 195 1350 228 Remotely . | . . . . . Salvage Created 2155 | 182 391 58 1042 482 Parts 147 | 13 32 7 65 30 Haulers Intercepted . | . . . . . Recyclers Shooed 4 | . 2 1 1 . Parts Field Recycled . | . . . . . Retrieved Matter . | . . . . . Parts Self-Destructed . | . . . . . Prevented . | . . . . . Kills | -11 -10 -10 -9 -9 ------- Run | Yrd Mat Min Mat Sto Combat Hostiles Destroyed 52 | . 10 3 31 8 Guns 29 | . 10 3 8 8 Cannons 17 | . . . 17 . AOE 6 | . . . 6 . Classes Destroyed 11 | 2 5 1 3 . Worker 3 | . 1 . 2 . Builder 3 | . . . 2 1 Tunneler 4 | 3 . 1 . . Recycler 5 | 1 . . 4 . Operator 4 | . 2 . 1 1 Watcher 8 | . 3 . 3 2 Swarmer 20 | . 6 2 12 . Grunt 14 | . 4 . 7 3 Duelist 2 | . . . 2 . Sentry 15 | . . . 10 5 Demolisher 1 | . . 1 . . Best Kill Streak 9 | 4 4 2 9 2 Combat Bots Only 8 | . 4 2 8 2 Max Kills in Single Turn 5 | 1 1 1 5 2 Gunslinging . | . . . . . Exploded 4 | . . . 4 . Melee . | . . . . . Uniques/NPCs Destroyed . | . . . . . Combat | -11 -10 -10 -9 -9 -------- Run | Yrd Mat Min Mat Sto Hostile Shots Fired 283 | . 77 14 137 55 Missed 84 | . 31 3 34 16 Hits 199 | . 46 11 103 39 Melee 2 | . . . 2 . Projectile 197 | . 46 11 101 39 Critical Strikes 5 | . 1 . 1 3 Actively Blocked 1 | . . . . 1 Damage Taken 2660 | . 522 148 1387 603 Core 615 | . 142 66 283 124 Absorbed by Shields . | . . . . . Redirected to Shielding 71 | . . . 33 38 Regen/Repaired (Parts) 303 | . . . 303 . Core Remaining (%) 58 | 100 . 16 . . Volleys Fired 193 | 14 52 12 85 30 Largest 3 | 2 2 2 3 3 Hottest 118 | 80 80 43 118 111 Shots Fired 377 | 28 83 24 164 78 Gun 291 | 28 83 24 78 78 Cannon 84 | . . . 84 . Launcher 2 | . . . 2 . Special . | . . . . . Kinetic 253 | . 31 24 142 56 Thermal 85 | 14 29 . 20 22 Explosive 2 | . . . 2 . Electromagnetic 37 | 14 23 . . . Robot Hit Streak 17 | 4 5 4 12 17 Robot Miss Streak 4 | 2 3 4 4 3 Penetration Max . | . . . . . Secondary Targets 1 | . . 1 . . Max Gunslinging Chain 1 | . . 1 . . Shots Hit Robots 234 | 15 52 14 104 49 Core Hits 104 | 5 25 7 45 22 Critical Kills 1 | . . . 1 . Critical Parts Destroyed . | . . . . . Critical Strikes 3 | . . . 3 . Destroy 1 | . . . 1 . Blast 2 | . . . 2 . Melee Attacks 3 | . . 3 . . Impact . | . . . . . Slashing . | . . . . . Piercing . | . . . . . Sneak Attacks . | . . . . . Combat Hostiles . | . . . . . Follow-up Attacks . | . . . . . Damage Inflicted 6119 | 172 660 150 4355 782 Guns 2455 | 172 592 150 759 782 Cannons 3180 | . . . 3180 . Explosions 484 | . 68 . 416 . Melee . | . . . . . Ramming . | . . . . . Kinetic 4611 | . 199 150 3737 525 Thermal 783 | 83 241 . 202 257 Explosive 416 | . . . 416 . Electromagnetic 309 | 89 220 . . . Impact . | . . . . . Slashing . | . . . . . Piercing . | . . . . . Highest Corruption . | . . . . . Average Corruption . | . . . . . Corruption Purged . | . . . . . Corruption Blocked . | . . . . . Overload Shots . | . . . . . Overflow Damage 363 | . . . 363 . Projectiles 293 | . . . 293 . Explosions 70 | . . . 70 . Melee . | . . . . . Knockbacks 13 | . . . 13 . Impact . | . . . . . Kinetic 11 | . . . 11 . Secondary 2 | . . . 2 . Self-Inflicted Damage 99 | . 30 . 69 . Shots 4 | . 2 . 2 . Rammed . | . . . . . Targets Rammed . | . . . . . Kicked . | . . . . . Crushed . | . . . . . Highest Temperature 304 | 216 138 6 304 189 Average Temperature 53 | 107 46 2 50 54 Received Heat Transfer 807 | . 180 24 381 222 Effects 2 | . . . 2 . Energy Bleed 2 | . . . 2 . Siege Activations . | . . . . . Martial Activations . | . . . . . Shielding Activations . | . . . . . Robots Disrupted . | . . . . . Combat Hostiles . | . . . . . Robots Corrupted . | . . . . . Combat Hostiles . | . . . . . Parts Fried 1 | . 1 . . . Impact Corruptions . | . . . . . Robots Melted . | . . . . . Combat Hostiles . | . . . . . Parts Melted 3 | . 1 . . 2 Heat Transferred 1760 | 200 450 . 481 629 Parts Sabotaged . | . . . . . Parts Stolen . | . . . . . Parts Stripped . | . . . . . Power Chain Reactions 2 | . 2 . . . Alert | -11 -10 -10 -9 -9 ------- Run | Yrd Mat Min Mat Sto Maximum Alert Level 2 | . . . 2 1 Low Security (%) 66 | 100 100 100 58 22 Level 1 16 | . . . 12 77 Level 2 17 | . . . 29 . Level 3 . | . . . . . Level 4 . | . . . . . Level 5 . | . . . . . High Security . | . . . . . Max Security . | . . . . . Peak Influence 540 | 10 132 121 540 245 Initial 225 | . 3 7 . 225 Average 145 | 1 47 18 190 206 Influence Increases 1957 | 20 353 166 1120 298 Destroy 0b10 Robot/C 1080 | . 200 80 640 160 Destroy 0b10 Robot/NC 145 | 20 30 5 70 20 Destroy Leader 310 | . 46 20 180 64 Allied During Kill 26 | . . 8 18 . Trap Triggered on 0b10 20 | . . . . 20 Successful Hack 86 | . 9 . 60 17 Disable Machine 60 | . 15 30 15 . Destroy Structure 80 | . 8 23 47 2 Lose Combat Pursuer 150 | . 45 . 90 15 Influence Decreases 1826 | 15 338 186 585 702 Entered New Map 325 | . 2 13 . 310 Time Decay 1317 | 15 296 163 501 342 Lost Part 150 | . 40 10 50 50 Lost Ally 34 | . . . 34 . Squads Dispatched 4 | . 2 1 1 . Investigation 3 | . 1 1 1 . Extermination . | . . . . . Reinforcement 1 | . 1 . . . Assault . | . . . . . Garrison . | . . . . . Intercept . | . . . . . Searches Triggered . | . . . . . Construction Impeded . | . . . . . Haulers Reinforced . | . . . . . Active Scanning Responses . | . . . . . Cargo Convoy Interrupts . | . . . . . Stealth | -11 -10 -10 -9 -9 --------- Run | Yrd Mat Min Mat Sto Distress Signals 5 | . 2 . 2 1 Communications Jammed . | . . . . . Distress Signals . | . . . . . Times Spotted 88 | . 23 5 43 17 Peak Tracking Total 9 | . 6 3 9 4 Tactical Retreats 6 | . 2 . 3 1 Traps | -11 -10 -10 -9 -9 ------- Run | Yrd Mat Min Mat Sto Traps Triggered 2 | . 1 . . 1 Indirectly . | . . . . . Trap Hack Attempts . | . . . . . Triggered . | . . . . . Disarmed . | . . . . . Reprogrammed . | . . . . . Reused 2 | . . . . 2 Traps Extracted . | . . . . . Installed 2 | . . . . 2 Triggered 2 | . . . . 2 Most Traps Carried 5 | . . 5 4 4 Machines | -11 -10 -10 -9 -9 ---------- Run | Yrd Mat Min Mat Sto Machines Disabled 4 | . 1 2 1 . Max in Single Turn 1 | . 1 . 1 . Machines Repaired . | . . . . . Machines Dismantled . | . . . . . Machines Sabotaged . | . . . . . Overloaded Fab Kills . | . . . . . Hacking | -11 -10 -10 -9 -9 --------- Run | Yrd Mat Min Mat Sto Machines Accessed 23 | . 3 1 15 4 Terminals 17 | . 3 . 10 4 Fabricators . | . . . . . Repair Stations 2 | . . . 2 . Recycling Units 2 | . . . 2 . Scanalyzers 1 | . . . 1 . Garrison Access . | . . . . . Total Hacks 87 | . 9 1 65 12 Successful 47 | . 3 1 36 7 Failed 40 | . 6 . 29 5 Catastrophic 4 | . . . 3 1 Database Lockouts . | . . . . . Manual . | . . . . . Terminals 60 | . 9 . 39 12 Fabricators . | . . . . . Repair Stations 10 | . . . 10 . Recycling Units 12 | . . . 12 . Scanalyzers 4 | . . . 4 . Garrison Access . | . . . . . Terminal Hacks 31 | . 3 1 20 7 Record 6 | . . . 5 1 Part Schematic 1 | . . . . 1 Prototype ID Bank 4 | . 1 . 2 1 Open Door 1 | . . 1 . . Emergency Access Points 2 | . . . 2 . Scanalyzer Index 1 | . . . 1 . Alert Level 5 | . . . 3 2 Locate Traps 3 | . 1 . 1 1 Dispatch Records 1 | . . . 1 . Maintenance Status 1 | . . . 1 . Investigation Status 1 | . . . 1 . Reinforcement Status 1 | . . . 1 . Zone Layout 4 | . 1 . 2 1 Fabricator Hacks . | . . . . . Repair Station Hacks 6 | . . . 6 . Scan Component 3 | . . . 3 . Repair 3 | . . . 3 . Recycling Unit Hacks 6 | . . . 6 . Recycle Component 2 | . . . 2 . Retrieve Matter 2 | . . . 2 . Retrieve Components 2 | . . . 2 . Scanalyzer 4 | . . . 4 . Insert Component 2 | . . . 2 . Analyze 2 | . . . 2 . Garrison Access Hacks . | . . . . . Unauthorized Hacks . | . . . . . Terminals . | . . . . . Fabricators . | . . . . . Repair Stations . | . . . . . Recycling Units . | . . . . . Scanalyzers . | . . . . . Garrison Access . | . . . . . Data Cores Recovered 3 | . 1 . 1 1 Used . | . . . . . Hacking Detections 21 | . 3 . 14 4 Full Trace Events 3 | . . . 3 . Feedback Events . | . . . . . Feedback Blocked . | . . . . . Robot Schematics Acquired . | . . . . . Robots Built . | . . . . . Authchips . | . . . . . Time . | . . . . . Total Robot Build Rating . | . . . . . Part Schematics Acquired 3 | . . . 2 1 Parts Built . | . . . . . Authchips . | . . . . . Time . | . . . . . Total Part Build Rating . | . . . . . Parts Repaired 3 | . . . 3 . Time 90 | . . . 90 . Parts Recycled 2 | . . . 2 . Recycled Matter . | . . . . . Retrieved Matter . | . . . . . Retrieved Components 10 | . . . 10 . Parts Scanalyzed 2 | . . . 2 . Part Schematics Acquired 2 | . . . 2 . Parts Damaged . | . . . . . Bothacking | -11 -10 -10 -9 -9 ------------ Run | Yrd Mat Min Mat Sto Used RIF Installer . | . . . . . Robots Hacked . | . . . . . Non-combat . | . . . . . Combat . | . . . . . Robot Hacks Applied . | . . . . . Relay Couplers Released . | . . . . . Fabnet Peak Effective % . | . . . . . Robots Rewired . | . . . . . Allies Hacked . | . . . . . Hacks Repelled . | . . . . . Allies | -11 -10 -10 -9 -9 -------- Run | Yrd Mat Min Mat Sto Total Allies 2 | . . 2 . . Largest Group 2 | . . 2 2 . Highest-Rated Group 38 | . . 38 38 . Highest-Rated Ally 31 | . . 31 31 . Total Orders . | . . . . . Ally Attacks 9 | . . 2 7 . Total Damage 245 | . . 139 106 . Kills 4 | . . 1 3 . Allies Corrupted . | . . . . . Allies Melted . | . . . . . Intel | -11 -10 -10 -9 -9 ------- Run | Yrd Mat Min Mat Sto Active Infowar (turns) 62 | 4 58 . . . Terrain 62 | 4 58 . . . Robot Analysis Total . | . . . . . Derelict Logs Recovered 3 | . . 3 . . Drone Launches . | . . . . . Drone Recoveries . | . . . . . Exploration | -11 -10 -10 -9 -9 ------------- Run | Yrd Mat Min Mat Sto Turns Passed 6480 | 98 875 945 3786 776 Spaces Moved 3145 | 52 532 553 1618 390 Core 15 | 15 . . . . Treads 557 | . . . 557 . Legs 4 | . . . 4 . Wheels 2569 | 37 532 553 1057 390 Hover . | . . . . . Flight . | . . . . . Fastest Speed 50 | 50 90 135 135 135 Average Speed 181 | 78 130 160 211 171 Slowest Speed 560 | 90 200 200 560 215 Overloaded Moves . | . . . . . Propulsion Burnouts . | . . . . . Robots Hopped . | . . . . . Potential Cave-ins . | . . . . . Cave-ins Triggered . | . . . . . Exploration Rate (%) 65 | 4 68 95 99 62 Regions Visited 4 Branch Regions 2 Pre-discovered Areas 1 | . . 1 . . Known Exits Taken . | . . . . . Unknown Exits Taken 4 | 1 1 1 1 . Scrap Searched 1 | . . 1 . . Spaces Dug . | . . . . . Terrain Destroyed 56 | . 8 . 48 . Melee . | . . . . . Projectile 32 | . . . 32 . AOE 24 | . 8 . 16 . Terrain Rammed . | . . . . . Walls Destroyed . | . . . . . Machines Disabled . | . . . . . Actions | -11 -10 -10 -9 -9 --------- Run | Yrd Mat Min Mat Sto Total 3555 | 82 634 599 1792 448 Wait . | . . . . . Move 3141 | 51 531 552 1617 390 Hop . | . . . . . Pick Up 102 | 7 35 14 36 10 Fast Attach . | . . . . . Attach 38 | 8 5 2 18 5 Detach 5 | 2 . . 3 . Swap 19 | . 5 2 10 2 Drop 52 | . 6 14 23 9 Fire 193 | 14 52 12 85 30 Melee 3 | . . 3 . . Ram . | . . . . . Kick . | . . . . . Crush . | . . . . . Escape Stasis . | . . . . . Rewire . | . . . . . Trap 2 | . . . . 2 Miscellaneous . | . . . . . Route ------- -11/Scrapyard -10/Materials (discovered 3 exits: *Mat x2 / *Min) -10/Mines (discovered 3 exits: *Mat / [*Exi] / [*Sub]) -9/Materials (discovered 5 exits: [*Mat x3] / [*Min] / *Sto) -9/Storage (discovered 1 exit: [*Mat]) History --------- Turn | Location | Event 5 | -11/Scrapyard | Discovered new exit (range 14) 99 | -11/Scrapyard | Entered Materials 102 | -10/Materials | Discovered new exit (range 16) 312 | -10/Materials | Build established: Mutant 572 | -10/Materials | Discovered new exit (range 14) 683 | -10/Materials | Core integrity fell below 50% 718 | -10/Materials | Lost 3 parts (1n2w) 800 | -10/Materials | Discovered new exit (range 3) 974 | -10/Materials | Entered Mines 993 | -10/Mines | Learned Materials terminal intel 999 | -10/Mines | Learned Materials security intel 1098 | -10/Mines | Assembled infested the area 1128 | -10/Mines | A weapon hastily lodged in a ceiling crevice suddenly fell to the ground 1142 | -10/Mines | Met 8R-AWN 1288 | -10/Mines | Core integrity fell below 20% 1320 | -10/Mines | Discovered new exit (range 6) 1372 | -10/Mines | Discovered new exit (range 5) 1450 | -10/Mines | Found a hidden stash of uninstalled traps 1768 | -10/Mines | Met a Derelict shopkeep closing up shop 1842 | -10/Mines | Discovered new exit (range 15) 1867 | -10/Mines | Received a Rocket Launcher from a helpful Derelict 1919 | -10/Mines | Entered Materials 1919 | -9/Materials | Accompanied by 2 allies 1919 | -9/Materials | Evolved 2 slots: Utility x1, Weapon x1 1921 | -9/Materials | Loaded intel: 12 terminal locations 1924 | -9/Materials | Led the pair of lost Derelicts to an unsafe place 2216 | -9/Materials | Build established: Gunner 3143 | -9/Materials | Discovered new exit (range 16) 3542 | -9/Materials | Discovered new exit (range 7) 4150 | -9/Materials | Destroyed 8 combat bots 4207 | -9/Materials | Repaired Hvy. Assault Cannon 4245 | -9/Materials | Repaired Lgt. Treads 4292 | -9/Materials | Repaired Propulsion Shielding 4313 | -9/Materials | Discovered new exit (range 12) 4423 | -9/Materials | Core integrity fell below 50% 4979 | -9/Materials | Discovered new exit (range 15) 5416 | -9/Materials | Discovered new exit (range 4) 5705 | -9/Materials | Entered Storage 5778 | -9/Storage | Core integrity fell below 20% 6406 | -9/Storage | Discovered new exit (range 16) 6481 | -9/Storage | Destroyed by Y-45 Defender with Beam Rifle Last Messages --------------- Acquired 8 matter. Acquired Wheel. Acquired 10 matter. Triggered Explosive Trap. An explosion rips through the floor. Wheel destroyed. Shotgun destroyed. Acquired Visual Processing Unit. Dropped Visual Processing Unit. Connecting with Door Terminal... EXIT=FOUND Connecting with Terminal... >>Alert(Check) Current Alert Level: Low Security >>Traps(Locate) Found 1 trap in 1 array: 1x Explosive Trap Map updated. Dropped Shotgun. Particle Gun destroyed. Map ----- +----------------------------------------------------+ | """ ????????????????????????? | | ### ????????????????????????? | | ??# ????????????????????????? | | ??# ????????????????????????? | | ??# ????????????????????????? | | ??# ????????????????????????? | | ??###????????????????????????? | | ????#????????????????????????? | | ????#????????????????????????? | | #####????????????????????????? | | #????????????????????????? | | #????????????????????????? | | ?????????????????????????????? | | ?????????????????????????????? | | ?????????????????????????????? | | ?????????????????????+##?????? | | ????????????????? ?? ?????? | | ????????????????? ?? ???##? | | #????????????????? "? ### ## | | ### ##????????????? Y? # Y # | | ??????????????"" # # | | ????????????? # ][ # | | ??????????????? # [ # | | ##???????????????????? + # | | ??????????????????????# # # | | ??????????????????????# #@ # | | ??????????????????????#[+[ # | | ??????????????????????# # # | | ????????????########### ###### | | ????????????# + #????? | | ????????????# ##+#####? | | ????????????# """"" # * #? | | ????????????# "???" # ]!#? | | ?#####??????# "??"" # #? | | ?#!!!#??????# ""??" # #? | | ?#!!!#??????# "???" # #? | | ?#" "##?????# """"" #] ! #? | | ?# T#???### ########? | | ####+######T##+##+####???????? | | #?????? | | < #?????? | | #?????? | | ##############+##+######?????? | | ?????????????????????????????? | | ?????????????????????????????? | | ?????????????????????????????? | | ?????????????????????????????? | | ?????????????????????????????? | | ?????????????????????????????? | | ?????????????????????????????? | +----------------------------------------------------+ Best States ------------- Heat Dissipation 28 Energy Generation 18 Energy Capacity 280 Matter Stores 450 Matter Capacity 450 Sight Range 16 Terrain Scan Range 16 Terrain Scan Density 10 Propulsion Shielding 33 Evasion (%) 42 Targeting Accuracy 6 Recoil Reduction 2 Offensive Hacking 10 Item Schematics ----------------- Hvy. Assault Cannon | -9/Materials | Scanalyzed Hvy. Armor Plating | -9/Materials | Scanalyzed Chainsword | -9/Storage | Hacked Robot Schematics ------------------ None Fabricated ------------ Nothing Repaired ---------- Hvy. Assault Cannon | 24% | -9/Materials Lgt. Treads | 36% | -9/Materials Propulsion Shielding | 52% | -9/Materials Alien Tech Used ----------------- None Achievements -------------- None Challenges ------------ None Game ------ Seed HardlightFluxBotcube Manual? 0 Play Time 01:08:31 Cumulative 4.5 hours Start 2025.08.29 @ 19:51:02 End 2025.08.30 @ 10:07:19 Sessions 3 Manual Loads 0 Difficulty Rogue Special Mode None Game No. 6 Rogue 6 Adventurer 0 Explorer 0 Win Type - Total 0 Types 0/0/0/0/0/0/0/0/0/0 Lore% 1 Gallery% 8 Achievement% 7 Wizard Run 0 Options --------- Layout 1 ASCII 0 Keyboard 0 Movement Mouse Keybinds 0 Fullscreen 1 Font 24/Smallcaps Map View 50x35 Zoom Use 0% Tactical HUD 0 Map Filters NONE Filters NONE Steam 1 RUN: 0def2511-3611-4e03-b068-0b96535e39e4